Cogmind - Beta 16.1 @@@ ROGUE MODE // 2026.04.28 @ 12:41:33 Player: Dr. Peter Lankton Result: Destroyed by as-99037 with Assembled Rifle Performance ------------- Evolutions (1) 500 Regions Visited (4) 800 Robots Destroyed (17) 85 Value Destroyed (444) 444 Prototype IDs (0) 0 Alien Tech Used (0) 0 Bonus (0) 0 TOTAL SCORE: 1829 Bonus ------- None Cogmind --------- Core Integrity 0/400 Matter 290/300 Energy 263/265 System Corruption 0% Temperature Cool (1) Movement Walking (120) Location -9/Mines Parts ------- > --- POWER (1) -------- Reinforced Ion Engine > --- PROPULSION (3) --- Aluminum Leg > --- UTILITY (3) ------ Visual Processing Unit > --- WEAPON (2) ------- (None) > --- INVENTORY (5) ---- Ion Engine Heat Sink Medium Matter Pod (100) EM Pulse Gun Beam Cannon Peak State ------------ > --- POWER ------------ Light Ion Engine > --- PROPULSION ------- Aluminum Leg Aluminum Leg Aluminum Leg > --- UTILITY ---------- Visual Processing Unit Seismic Detector Hacking Suite > --- WEAPON ----------- EM Pulse Gun Beam Cannon > --- INVENTORY -------- Heat Sink Medium Matter Pod Visual Processing Unit Beam Cannon Grenade Launcher [Rating: 12] Favorites ----------- Power Light Ion Engine Engine Light Ion Engine Propulsion Aluminum Leg Leg Aluminum Leg Wheel Wheel Utility Hacking Suite Device Heat Sink Processor Visual Processing Unit Hackware Hacking Suite Weapon Beam Cannon Energy Gun EM Pulse Gun Energy Cannon Beam Cannon Launcher Grenade Launcher Build | -11 -10 -10 -9 -9 ------- Run | Yrd Mat Min Mat Min Slots Evolved 2 | . . . 2 . Power . | . . . . . Propulsion 1 | . . . 1 . Utility 1 | . . . 1 . Weapon . | . . . . . Parts Attached 21 | 6 7 . 7 1 Power 3 | 1 . . 2 . Engine 3 | 1 . . 2 . Core . | . . . . . Reactor . | . . . . . Propulsion 6 | 2 2 . 2 . Treads . | . . . . . Leg 4 | . 2 . 2 . Wheel 2 | 2 . . . . Hover . | . . . . . Flight . | . . . . . Utility 6 | 1 3 . 2 . Device 3 | 1 2 . . . Storage . | . . . . . Processor 2 | . . . 2 . Hackware 1 | . 1 . . . Protection . | . . . . . Artifact . | . . . . . Weapon 6 | 2 2 . 1 1 Energy Gun 2 | 2 . . . . Energy Cannon 3 | . 1 . 1 1 Ballistic Gun . | . . . . . Ballistic Cannon . | . . . . . Launcher 1 | . 1 . . . Special Weapon . | . . . . . Impact Weapon . | . . . . . Slashing Weapon . | . . . . . Piercing Weapon . | . . . . . Special Melee Weapon . | . . . . . Unidentified Prototypes . | . . . . . Parts Lost 9 | . 1 . 3 5 Power 1 | . . . 1 . Propulsion 3 | . . . 1 2 Utility 1 | . . . 1 . Weapon 4 | . 1 . . 3 Highest Loss Streak 5 | . 1 . 2 5 To Critical Strikes 1 | . . . . 1 Average Backups 4 | 3 4 5 4 4 Power . | . . . . 1 Propulsion 1 | 3 2 1 . . Utility 1 | . 1 2 1 1 Weapon 1 | . 1 2 2 2 Tool/Special . | . . . . . Unused Backups 5 | . 4 . . 1 Power . | . . . . . Propulsion 1 | . 1 . . . Utility 2 | . 1 . . 1 Weapon 2 | . 2 . . . Tool/Special . | . . . . . Average Slot Usage (%) 94 | . 98 100 90 81 Engine 11 | . 14 14 6 11 Leg 26 | . 21 28 32 28 Wheel 2 | . 6 . . . Device 15 | . 14 14 19 11 Processor 1 | . . . 2 11 Hackware 10 | . 13 14 6 . Energy Gun 9 | . 16 14 1 . Energy Cannon 14 | . 8 14 20 19 Peak Build Rating 12 | 6 9 9 12 10 Average Rating 8 | 2 8 9 9 9 On Entrance 6 | . 6 9 9 10 Avg Prop Armor Cover (%) 7 | . . . 7 7 Naked Turns . | . . . . . Heaviest Build 18 | 8 9 9 18 17 Greatest Support 30 | 20 20 20 30 20 Greatest Overweight (x) 2 | 2 . . . 1 Average Overweight (x) . | . . . . . Largest Inventory Capacity 5 | 5 5 5 5 5 Average Capacity 5 | 5 5 5 5 5 Most Carried 5 | 5 5 5 5 5 Average Carried 4 | 3 4 5 4 4 Final Capacity 5 | 5 5 5 5 5 Final Carried 5 | 5 5 5 5 5 Class Distribution -------------------- 100% | Mutant Dominant Class ---------------- Mutant | -10/Materials Mutant | -10/Mines Mutant | -9/Materials Mutant | -9/Mines Resources | -11 -10 -10 -9 -9 ----------- Run | Yrd Mat Min Mat Min Matter Collected 515 | 260 81 . 174 . Remotely . | . . . . . Salvage Created 524 | 50 192 . 242 40 Parts 33 | 3 15 . 11 4 Haulers Intercepted . | . . . . . Recyclers Shooed . | . . . . . Parts Field Recycled . | . . . . . Retrieved Matter . | . . . . . Parts Self-Destructed . | . . . . . Prevented . | . . . . . Parts Restored . | . . . . . Kills | -11 -10 -10 -9 -9 ------- Run | Yrd Mat Min Mat Min Combat Hostiles Destroyed 13 | 1 4 . 5 3 Guns 2 | 1 1 . . . Cannons 10 | . 2 . 5 3 AOE 1 | . 1 . . . Classes Destroyed 8 | 1 3 . 3 1 Worker 1 | . 1 . . . Builder 1 | . 1 . . . Operator 1 | . 1 . . . Watcher 1 | . . . 1 . Swarmer 3 | . . . . 3 Grunt 8 | 1 4 . 3 . Brawler 1 | . . . 1 . Sentry 1 | . . . 1 . Best Kill Streak 3 | 1 3 . 2 3 Combat Bots Only 3 | 1 1 . 2 3 Max Kills in Single Turn 2 | 1 2 . 1 1 Gunslinging . | . . . . . Exploded 1 | . 1 . . . Melee . | . . . . . Uniques/NPCs Destroyed . | . . . . . Combat | -11 -10 -10 -9 -9 -------- Run | Yrd Mat Min Mat Min Hostile Shots Fired 100 | 2 22 . 35 41 Missed 29 | . 10 . 8 11 Hits 71 | 2 12 . 27 30 Projectile 71 | 2 12 . 27 30 AOE 18 | . . . . 18 Critical Strikes 3 | . . . 2 1 Damage Taken 1406 | 22 183 . 385 816 Core 441 | 22 11 . 87 321 Absorbed by Shields . | . . . . . Core Remaining (%) 88 | 91 . 86 . . Volleys Fired 67 | 2 25 . 29 11 Largest 2 | 2 2 . 2 2 Hottest 120 | 80 100 . 120 120 Shots Fired 102 | 4 42 . 36 20 Gun 42 | 4 38 . . . Cannon 59 | . 4 . 36 19 Launcher 1 | . . . . 1 Special . | . . . . . Kinetic . | . . . . . Thermal 59 | . 4 . 36 19 Explosive 1 | . . . . 1 Electromagnetic 42 | 4 38 . . . Robot Hit Streak 5 | 2 5 . 5 2 Robot Miss Streak 4 | 1 4 . 3 4 Penetration Max . | . . . . . Secondary Targets . | . . . . . Shots Hit Robots 54 | 2 22 . 22 8 Core Hits 25 | 1 10 . 9 5 Critical Kills . | . . . . . Critical Parts Destroyed . | . . . . . Critical Strikes 1 | . 1 . . . Corrupt 1 | . 1 . . . Melee Attacks . | . . . . . Impact . | . . . . . Slashing . | . . . . . Piercing . | . . . . . Sneak Attacks . | . . . . . Combat Hostiles . | . . . . . Follow-up Attacks . | . . . . . Damage Inflicted 1057 | 28 454 . 382 193 Guns 313 | 28 285 . . . Cannons 628 | . 70 . 382 176 Explosions 116 | . 99 . . 17 Melee . | . . . . . Ramming . | . . . . . Kinetic . | . . . . . Thermal 727 | . 169 . 382 176 Explosive 17 | . . . . 17 Electromagnetic 313 | 28 285 . . . Impact . | . . . . . Slashing . | . . . . . Piercing . | . . . . . Highest Corruption . | . . . . . Average Corruption . | . . . . . Corruption Purged . | . . . . . Corruption Blocked . | . . . . . Overload Shots . | . . . . . Overflow Damage . | . . . . . Projectiles . | . . . . . Explosions . | . . . . . Melee . | . . . . . Knockbacks . | . . . . . Impact . | . . . . . Kinetic . | . . . . . Secondary . | . . . . . Self-Inflicted Damage . | . . . . . Shots . | . . . . . Rammed . | . . . . . Targets Rammed . | . . . . . Kicked . | . . . . . Crushed . | . . . . . Highest Temperature 314 | 48 33 . 314 171 Average Temperature 91 | 27 10 . 129 98 Received Heat Transfer 275 | 12 84 . 147 32 Effects 2 | . . . 2 . Interference 2 | . . . 2 . Siege Activations . | . . . . . Martial Activations . | . . . . . Shielding Activations . | . . . . . Robots Disrupted . | . . . . . Combat Hostiles . | . . . . . Robots Corrupted . | . . . . . Combat Hostiles . | . . . . . Parts Fried 1 | . 1 . . . Impact Corruptions . | . . . . . Robots Melted . | . . . . . Combat Hostiles . | . . . . . Parts Melted 6 | . 4 . 1 1 Heat Transferred 1532 | . 348 . 814 370 Parts Sabotaged . | . . . . . Parts Stolen . | . . . . . Parts Stripped . | . . . . . Power Chain Reactions 2 | . 2 . . . Alert | -11 -10 -10 -9 -9 ------- Run | Yrd Mat Min Mat Min Maximum Alert Level . | . . . . . Low Security (%) 100 | 100 100 100 100 100 Level 1 . | . . . . . Level 2 . | . . . . . Level 3 . | . . . . . Level 4 . | . . . . . Level 5 . | . . . . . High Security . | . . . . . Max Security . | . . . . . Peak Influence 72 | 20 72 . 45 50 Initial 9 | . 6 . . 9 Average 15 | 3 28 . 13 13 Influence Increases 428 | 20 182 . 152 74 Destroy 0b10 Robot/C 260 | 20 80 . 100 60 Destroy 0b10 Robot/NC 20 | . 15 . 5 . Destroy Leader 62 | . 20 . 32 10 Disable Machine 15 | . 15 . . . Destroy Structure 11 | . 7 . . 4 Lose Combat Pursuer 60 | . 45 . 15 . Influence Decreases 428 | 10 192 . 127 99 Entered New Map 20 | . 4 . . 16 Time Decay 328 | 10 178 . 107 33 Lost Part 80 | . 10 . 20 50 Squads Dispatched 3 | . 2 . 1 . Investigation 1 | . . . 1 . Extermination . | . . . . . Reinforcement 2 | . 2 . . . Assault . | . . . . . Garrison . | . . . . . Intercept . | . . . . . Searches Triggered . | . . . . . Construction Impeded . | . . . . . Haulers Reinforced . | . . . . . Active Scanning Responses . | . . . . . Cargo Convoy Interrupts . | . . . . . Stealth | -11 -10 -10 -9 -9 --------- Run | Yrd Mat Min Mat Min Distress Signals 2 | . 1 . 1 . Communications Jammed . | . . . . . Distress Signals . | . . . . . Times Spotted 31 | 1 11 . 7 12 Peak Tracking Total 7 | 1 3 . 3 7 Tactical Retreats 3 | . 2 . 1 . Traps | -11 -10 -10 -9 -9 ------- Run | Yrd Mat Min Mat Min Traps Triggered 1 | . 1 . . . Indirectly . | . . . . . Trap Hack Attempts . | . . . . . Triggered . | . . . . . Disarmed 6 | . 6 . . . Reprogrammed . | . . . . . Reused . | . . . . . Traps Extracted . | . . . . . Installed . | . . . . . Triggered . | . . . . . Machines | -11 -10 -10 -9 -9 ---------- Run | Yrd Mat Min Mat Min Machines Disabled 1 | . 1 . . . Max in Single Turn 1 | . 1 . . . Machines Repaired . | . . . . . Machines Dismantled . | . . . . . Machines Sabotaged . | . . . . . Overloaded Fab Kills . | . . . . . Hacking | -11 -10 -10 -9 -9 --------- Run | Yrd Mat Min Mat Min Machines Accessed 4 | . 3 . 1 . Terminals 2 | . 2 . . . Fabricators . | . . . . . Repair Stations 1 | . . . 1 . Recycling Units 1 | . 1 . . . Scanalyzers . | . . . . . Garrison Access . | . . . . . Total Hacks 13 | . 7 . 6 . Successful 9 | . 5 . 4 . Failed 4 | . 2 . 2 . Catastrophic . | . . . . . Database Lockouts . | . . . . . Manual . | . . . . . Terminals 4 | . 4 . . . Fabricators . | . . . . . Repair Stations 6 | . . . 6 . Recycling Units 3 | . 3 . . . Scanalyzers . | . . . . . Garrison Access . | . . . . . Terminal Hacks 2 | . 2 . . . Emergency Access Points 1 | . 1 . . . Disarm Traps 1 | . 1 . . . Fabricator Hacks . | . . . . . Repair Station Hacks 4 | . . . 4 . Scan Component 3 | . . . 3 . Repair 1 | . . . 1 . Recycling Unit Hacks 3 | . 3 . . . Process 1 | . 1 . . . Report Inventory 1 | . 1 . . . Retrieve Matter 1 | . 1 . . . Scanalyzer . | . . . . . Garrison Access Hacks . | . . . . . Unauthorized Hacks . | . . . . . Terminals . | . . . . . Fabricators . | . . . . . Repair Stations . | . . . . . Recycling Units . | . . . . . Scanalyzers . | . . . . . Garrison Access . | . . . . . Data Cores Recovered 1 | . 1 . . . Used 1 | . 1 . . . Hacking Detections 2 | . 1 . 1 . Full Trace Events 1 | . . . 1 . Feedback Events . | . . . . . Feedback Blocked . | . . . . . Robot Schematics Acquired . | . . . . . Robots Built . | . . . . . Authchips . | . . . . . Time . | . . . . . Total Robot Build Rating . | . . . . . Part Schematics Acquired . | . . . . . Parts Built . | . . . . . Authchips . | . . . . . Time . | . . . . . Total Part Build Rating . | . . . . . Part Studies Acquired . | . . . . . Parts Repaired . | . . . . . Time 26 | . . . 26 . Parts Recycled . | . . . . . Recycled Matter 145 | . 145 . . . Retrieved Matter 145 | . 145 . . . Retrieved Components . | . . . . . Parts Scanalyzed . | . . . . . Part Schematics Acquired . | . . . . . Parts Damaged . | . . . . . Bothacking | -11 -10 -10 -9 -9 ------------ Run | Yrd Mat Min Mat Min Used RIF Installer . | . . . . . Robots Hacked . | . . . . . Non-combat . | . . . . . Combat . | . . . . . Robot Hacks Applied . | . . . . . Relay Couplers Released . | . . . . . Fabnet Peak Effective % . | . . . . . Robots Rewired . | . . . . . Allies Hacked . | . . . . . Hacks Repelled . | . . . . . Allies | -11 -10 -10 -9 -9 -------- Run | Yrd Mat Min Mat Min Total Allies . | . . . . . Largest Group . | . . . . . Highest-Rated Group . | . . . . . Highest-Rated Ally . | . . . . . Total Orders . | . . . . . Ally Attacks . | . . . . . Total Damage . | . . . . . Kills . | . . . . . Allies Corrupted . | . . . . . Allies Melted . | . . . . . Intel | -11 -10 -10 -9 -9 ------- Run | Yrd Mat Min Mat Min Active Infowar (turns) 701 | . 153 264 161 123 Optics 186 | . . . 63 123 Seismic 560 | . 153 264 143 . Robot Analysis Total . | . . . . . Derelict Logs Recovered . | . . . . . Drone Launches . | . . . . . Drone Recoveries . | . . . . . Exploration | -11 -10 -10 -9 -9 ------------- Run | Yrd Mat Min Mat Min Turns Passed 1343 | 104 487 264 365 123 Spaces Moved 948 | 83 356 221 217 71 Core 79 | 79 . . . . Treads . | . . . . . Legs 799 | . 290 221 217 71 Wheels 70 | 4 66 . . . Hover . | . . . . . Flight . | . . . . . Fastest Speed 50 | 50 80 120 120 120 Average Speed 115 | 97 112 120 120 125 Slowest Speed 190 | 150 120 120 120 190 Overloaded Moves . | . . . . . Propulsion Burnouts . | . . . . . Robots Hopped . | . . . . . Potential Cave-ins . | . . . . . Cave-ins Triggered . | . . . . . Exploration Rate (%) 27 | 8 41 47 18 25 Regions Visited 4 Branch Regions 2 Pre-discovered Areas . | . . . . . Known Exits Taken . | . . . . . Unknown Exits Taken 4 | 1 1 1 1 . Scrap Searched . | . . . . . Spaces Dug . | . . . . . Terrain Destroyed 13 | . 7 . . 6 Melee . | . . . . . Projectile . | . . . . . AOE 13 | . 7 . . 6 Terrain Rammed . | . . . . . Walls Destroyed . | . . . . . Machines Disabled . | . . . . . Actions | -11 -10 -10 -9 -9 --------- Run | Yrd Mat Min Mat Min Total 1092 | 101 401 220 285 85 Wait 22 | 1 . . 21 . Move 944 | 82 355 220 216 71 Hop . | . . . . . Pick Up 23 | 10 7 . 6 . Fast Attach 3 | 1 1 . 1 . Attach 12 | 5 1 . 5 1 Detach 2 | . . . 1 1 Swap 10 | . 5 . 4 1 Drop 9 | . 7 . 2 . Fire 67 | 2 25 . 29 11 Melee . | . . . . . Ram . | . . . . . Kick . | . . . . . Crush . | . . . . . Escape Stasis . | . . . . . Rewire . | . . . . . Trap . | . . . . . Miscellaneous . | . . . . . Route ------- -11/Scrapyard -10/Materials (discovered 2 exits: *Mat / [*Min]) -10/Mines -9/Materials -9/Mines History --------- Turn | Location | Event 2 | -11/Scrapyard | Met Revision 17 72 | -11/Scrapyard | Discovered new exit (range 8) 105 | -11/Scrapyard | Entered Materials 313 | -10/Materials | Discovered new exit (range 8) 314 | -10/Materials | Build established: Mutant 382 | -10/Materials | Discovered new exit (range 6) 592 | -10/Materials | Entered Mines 614 | -10/Mines | Met a Derelict bent on vengeance 811 | -10/Mines | Discovered new exit (range 9) 856 | -10/Mines | Entered Materials 856 | -9/Materials | Evolved 2 slots: Propulsion x1, Utility x1 1186 | -9/Materials | Discovered new exit (range 15) 1221 | -9/Materials | Entered Mines 1288 | -9/Mines | Assembled infested the area 1329 | -9/Mines | Core integrity fell below 50% 1338 | -9/Mines | Core integrity fell below 20% 1344 | -9/Mines | Destroyed by as-99037 with Assembled Rifle Last Messages --------------- Broken Aluminum Leg destroyed. Flight Unit melted. S-10 Pest destroyed. K-01 Serf collects debris. R-06 Scavenger collects Lgt. Assault Rifle. C-45 Heavy ARC bursts open, deploying its payload. D-53 Grenadier unfolds itself. R-06 Scavenger destroyed. Plasma Injector explodes. T-07 Excavator destroyed. Grenade Launcher destroyed. Aluminum Leg destroyed. The unstable cave ceiling collapses. Beam Cannon destroyed. as-90999 destroyed. Beam Cannon destroyed. D-53 Grenadier destroyed. as-71007 destroyed. The unstable cave ceiling collapses. Map ----- +----------------------------------------------------+ | ??????? ????# #??????????????????????? | | ???????? ????# #??????????????????????? | | ?????????# ????# #??????????????????????? | | ?????????# #???# #??????????????????????? | | ?????????# ##?# #??????????????????????? | | ????????## ### #??????????????????????? | | ????##### #??????????????????????? | | ???## ####??????????????????????? | | ???# #?????????????????????????? | | ?### ##????????????????????????? | | # ##???????????????????????? | | # ## ##??????????????????????? | | # ## ??## #??????????????????????? | | ???# ????# ### #??????????????????? | | ???# ?????## % #??????????????????? | | ???#???????## # ###??????????????????? | | ????????????# ## * #???????????????????? | | ????????????# %# [d ##???????????????????? | | ????????????# [% ###?????????????????? | | ????????????# a ##????????????????? | | ????????????## ##???????????????? | | ????????????# ##??????????????? | | ????????????# ##?????????????? | | ????????????# #?????????????? | | ????????????# ## ### #???????? | | ????????????# # @ #???????? | | ????????????## #???????? | | ?????????????# ######???????? | | ?????????????# #????????????? | | ?????????????# #????????????? | | ?????????????# #????????????? | | ?????????????### ### #????????????? | | ???????????????# a ##?## ##????????????? | | ???????????????## aa#???## #?????????????? | | ????????????????## #????? #?????????????? | | ?????????????????# #????? #?????????????? | | ?????????????????# $#????? #?????????????? | | ????????????????? #????? #?????????????? | | ????????????????? #????? #?????????????? | | ???????????????? #?????! ?????????????? | | ???????????????? #?????a ?????????????? | | ????????????????? ##?????< ?????????????? | | ??????????????????#???????? ?????????????? | | ?????????????????????????????????????????? | | ?????????????????????????????????????????? | | ?????????????????????????????????????????? | | ?????????????????????????????????????????? | | ?????????????????????????????????????????? | | ?????????????????????????????????????????? | | ?????????????????????????????????????????? | +----------------------------------------------------+ Best States ------------- Heat Dissipation 38 Energy Generation 12 Energy Capacity 265 Matter Stores 300 Matter Capacity 300 Sight Range 18 Terrain Scan Density 10 Evasion (%) 55 Offensive Hacking 10 Item Schematics ----------------- None Robot Schematics ------------------ None Fabricated ------------ Nothing Repaired ---------- Nothing Studied --------- None Alien Tech Used ----------------- None Achievements -------------- Dynamic Key Challenges ------------ None Game ------ Seed ReinforcedChipModule Manual? 0 Play Time 00:17:56 Cumulative 1.5 hours Start 2026.04.28 @ 12:21:42 End 2026.04.28 @ 12:41:33 Sessions 1 Manual Loads 0 Difficulty Rogue Special Mode None Game No. 3 Rogue 3 Adventurer 0 Explorer 0 Win Type - Total 0 Types 0/0/0/0/0/0/0/0/0/0 Lore% 1 Gallery% 3 Achievement% 5 Wizard Run 0 Options --------- Layout 1 ASCII 0 Keyboard 0 Movement Mouse Keybinds 0 Fullscreen 1 Font 24/Smallcaps Map View 50x35 Zoom Use 0% Tactical HUD 0 Map Filters NONE Filters NONE Steam 1 RUN: e9577076-af2f-4241-8890-f1f8e8d2657c